Cogmind - Beta 13 X1 @@@ ROGUE MODE // 2023.06.25 @ 15:50:40 Player: Jezoensis Result: Destroyed by P-60 Hacker with Shock Rifle Performance ------------- Evolutions (0) 0 Regions Visited (3) 600 Robots Destroyed (26) 130 Value Destroyed (509) 509 Prototype IDs (2) 40 Alien Tech Used (0) 0 Bonus (0) 0 TOTAL SCORE: 1279 Bonus ------- None Cogmind --------- Core Integrity 0/250 Matter 49/300 Energy 52/100 System Corruption 3% Temperature Cool (2) Movement Core (300) Ox5 Location -7/Recycling Parts ------- > --- POWER (1) -------- (None) > --- PROPULSION (2) --- (None) > --- UTILITY (2) ------ Improved Heat Sink Medium Storage Unit > --- WEAPON (2) ------- Gatling Laser Light Cannon > --- INVENTORY (10) --- Scrap Engine Structural Scanner Sensor Array Sensor Array Seismic Detector Mining Laser Peak State ------------ > --- POWER ------------ Ion Engine > --- PROPULSION ------- Compact Wheel Compact Wheel > --- UTILITY ---------- Improved Heat Sink Medium Storage Unit > --- WEAPON ----------- Gatling Laser Shotgun > --- INVENTORY -------- Light Treads Scrap Engine Structural Scanner Sensor Array Sensor Array Seismic Detector Light Cannon Subdweller Shrapnel Launcher Mining Laser [Rating: 15] Favorites ----------- Power Ion Engine Engine Ion Engine Propulsion Wheel Treads Light Treads Wheel Wheel Utility Structural Scanner Device Structural Scanner Storage Medium Storage Unit Weapon Shotgun Energy Gun Gatling Laser Ballistic Gun Shotgun Ballistic Cannon Light Cannon Launcher Subdweller Shrapnel Launcher Special Weapon Mining Laser Build | -11 -10 -10 -7 ------- Run | Jun Mat Sub Rec Slots Evolved . | . . . . Power . | . . . . Propulsion . | . . . . Utility . | . . . . Weapon . | . . . . Parts Attached 52 | 8 16 15 13 Power 2 | 1 1 . . Engine 2 | 1 1 . . Core . | . . . . Reactor . | . . . . Propulsion 20 | 3 8 5 4 Treads 7 | . 3 2 2 Leg . | . . . . Wheel 13 | 3 5 3 2 Hover . | . . . . Flight . | . . . . Utility 11 | 2 3 2 4 Device 9 | 1 2 2 4 Storage 2 | 1 1 . . Processor . | . . . . Hackware . | . . . . Protection . | . . . . Artifact . | . . . . Weapon 19 | 2 4 8 5 Energy Gun 2 | . . . 2 Energy Cannon . | . . . . Ballistic Gun 9 | 2 3 4 . Ballistic Cannon 2 | . . . 2 Launcher 5 | . . 4 1 Special Weapon 1 | . 1 . . Impact Weapon . | . . . . Slashing Weapon . | . . . . Piercing Weapon . | . . . . Special Melee Weapon . | . . . . Unidentified Prototypes . | . . . . Parts Lost 8 | . . 1 7 Power 1 | . . . 1 Propulsion 4 | . . 1 3 Utility . | . . . . Weapon 3 | . . . 3 Highest Loss Streak 6 | . . 1 6 To Critical Strikes . | . . . . Average Slot Usage (%) 99 | . 100 100 94 Engine 13 | . 14 14 12 Treads 1 | . 1 2 3 Wheel 26 | . 26 26 24 Device 13 | . 14 14 12 Storage 14 | . 14 14 14 Energy Gun 1 | . . . 10 Ballistic Gun 25 | . 27 25 14 Naked Turns . | . . . . Heaviest Build 27 | 15 22 22 27 Greatest Support 32 | 20 26 32 32 Greatest Overweight (x) 2 | . . 2 1 Average Overweight (x) . | . . . . Largest Inventory Capacity 10 | 8 10 10 10 Average Capacity 8 | 6 8 10 10 Most Carried 10 | 7 10 10 10 Average Carried 8 | 4 8 9 9 Final Capacity 10 | 8 10 10 10 Final Carried 10 | 7 10 9 7 Class Distribution -------------------- 100% | Mutant Dominant Class ---------------- Mutant | -10/Materials Mutant | -10/Subcaves Mutant | -7/Recycling Resources | -11 -10 -10 -7 ----------- Run | Jun Mat Sub Rec Matter Collected 799 | 316 270 113 100 Remotely . | . . . . Salvage Created 624 | 83 221 102 218 Parts 56 | 11 26 14 5 Haulers Intercepted . | . . . . Recyclers Shooed 1 | 1 . . . Parts Field Recycled . | . . . . Retrieved Matter . | . . . . Parts Self-Destructed 1 | . . 1 . Prevented . | . . . . Kills | -11 -10 -10 -7 ------- Run | Jun Mat Sub Rec Combat Hostiles Destroyed 17 | . 8 7 2 Guns 10 | . 8 1 1 Cannons 1 | . . . 1 AOE 6 | . . 6 . Classes Destroyed 9 | 2 4 2 1 Builder 1 | . 1 . . Tunneler 2 | 2 . . . Recycler 3 | 1 . . 2 Turret 2 | . . 2 . Watcher 1 | . 1 . . Swarmer 10 | . 6 4 . Grunt 2 | . 2 . . Sentry 2 | . . . 2 Subdweller 3 | . . 3 . Best Kill Streak 6 | 3 4 6 2 Combat Bots Only 4 | . 3 4 1 Max Kills in Single Turn 3 | 1 2 3 1 Gunslinging 1 | . 1 . . Exploded 3 | . . 3 . Melee . | . . . . Uniques/NPCs Destroyed . | . . . . Combat | -11 -10 -10 -7 -------- Run | Jun Mat Sub Rec Damage Taken 1110 | . 193 230 687 Core 252 | . 62 52 138 Absorbed by Shields . | . . . . Core Remaining (%) 100 | 100 . . . Volleys Fired 44 | 6 17 9 12 Largest 2 | 2 2 2 2 Hottest 103 | 40 100 70 103 Shots Fired 81 | 12 33 13 23 Gun 70 | 12 32 5 21 Cannon 2 | . . . 2 Launcher 8 | . . 8 . Special 1 | . 1 . . Kinetic 71 | 12 32 11 16 Thermal 8 | . 1 . 7 Explosive 2 | . . 2 . Electromagnetic . | . . . . Robot Hit Streak 7 | 5 6 3 7 Robot Miss Streak 4 | 1 4 2 3 Penetration Max . | . . . . Secondary Targets 3 | . 3 . . Max Gunslinging Chain 1 | . 1 . . Shots Hit Robots 58 | 10 21 7 20 Core Hits 46 | 4 14 15 13 Critical Kills . | . . . . Critical Parts Destroyed 1 | . . . 1 Critical Strikes 1 | . . . 1 Destroy 1 | . . . 1 Melee Attacks . | . . . . Impact . | . . . . Slashing . | . . . . Piercing . | . . . . Sneak Attacks . | . . . . Combat Hostiles . | . . . . Follow-up Attacks . | . . . . Damage Inflicted 1572 | 131 341 729 371 Guns 854 | 131 341 31 351 Cannons 20 | . . . 20 Explosions 698 | . . 698 . Melee . | . . . . Ramming . | . . . . Kinetic 1188 | 131 341 503 213 Thermal 158 | . . . 158 Explosive 226 | . . 226 . Electromagnetic . | . . . . Impact . | . . . . Slashing . | . . . . Piercing . | . . . . Highest Corruption 2 | . 1 1 2 Average Corruption 1 | . 1 1 1 Corruption Purged . | . . . . Corruption Blocked . | . . . . Effects 4 | . 2 2 . Message Errors 1 | . 1 . . Heat Flow Errors 1 | . 1 . . Misfires 1 | . . 1 . Alerts 1 | . . 1 . Overload Shots . | . . . . Overflow Damage 18 | . . 18 . Projectiles . | . . . . Explosions 18 | . . 18 . Melee . | . . . . Knockbacks . | . . . . Impact . | . . . . Kinetic . | . . . . Secondary . | . . . . Self-Inflicted Damage 32 | . . 32 . Shots 2 | . . 2 . Rammed . | . . . . Targets Rammed . | . . . . Kicked . | . . . . Crushed . | . . . . Highest Temperature 214 | . 214 . 42 Average Temperature 39 | . 72 . 11 Received Heat Transfer 192 | . 24 72 96 Siege Activations . | . . . . Robots Corrupted . | . . . . Combat Hostiles . | . . . . Parts Fried . | . . . . Impact Corruptions . | . . . . Robots Melted . | . . . . Combat Hostiles . | . . . . Parts Melted . | . . . . Heat Transferred 350 | . . . 350 Parts Sabotaged . | . . . . Parts Stolen . | . . . . Parts Stripped . | . . . . Power Chain Reactions . | . . . . Missiles Intercepted . | . . . . Alert | -11 -10 -10 -7 ------- Run | Jun Mat Sub Rec Peak Influence 345 | 15 229 . 345 Initial 324 | . 9 . 324 Average 128 | 6 99 . 333 Maximum Alert Level 1 | . 1 . 1 Low Security (%) 67 | 100 77 . . Level 1 32 | . 22 . 100 Level 2 . | . . . . Level 3 . | . . . . Level 4 . | . . . . Level 5 . | . . . . High Security . | . . . . Max Security . | . . . . Squads Dispatched . | . . . . Investigation . | . . . . Extermination . | . . . . Reinforcement . | . . . . Assault . | . . . . Garrison . | . . . . Intercept . | . . . . Searches Triggered . | . . . . Construction Impeded . | . . . . Haulers Reinforced . | . . . . Active Scanning Responses . | . . . . Cargo Convoy Interrupts . | . . . . Stealth | -11 -10 -10 -7 --------- Run | Jun Mat Sub Rec Distress Signals 1 | . 1 . . Communications Jammed . | . . . . Distress Signals . | . . . . Times Spotted 54 | . 16 34 4 Peak Tracking Total 6 | . 5 6 3 Tactical Retreats 3 | . 1 2 . Traps | -11 -10 -10 -7 ------- Run | Jun Mat Sub Rec Traps Triggered 1 | . 1 . . Indirectly . | . . . . Trap Hack Attempts . | . . . . Triggered . | . . . . Disarmed . | . . . . Reprogrammed . | . . . . Reused . | . . . . Traps Extracted . | . . . . Installed . | . . . . Triggered . | . . . . Machines | -11 -10 -10 -7 ---------- Run | Jun Mat Sub Rec Machines Disabled 4 | . . 4 . Max in Single Turn 2 | . . 2 . Machines Repaired . | . . . . Machines Sabotaged . | . . . . Overloaded Fab Kills . | . . . . Hacking | -11 -10 -10 -7 --------- Run | Jun Mat Sub Rec Machines Accessed 9 | . 9 . . Terminals 8 | . 8 . . Fabricators . | . . . . Repair Stations . | . . . . Recycling Units 1 | . 1 . . Scanalyzers . | . . . . Garrison Access . | . . . . Total Hacks 27 | . 27 . . Successful 15 | . 15 . . Failed 11 | . 11 . . Catastrophic 1 | . 1 . . Database Lockouts 1 | . 1 . . Manual 21 | . 21 . . Terminals 25 | . 25 . . Fabricators . | . . . . Repair Stations . | . . . . Recycling Units 2 | . 2 . . Scanalyzers . | . . . . Garrison Access . | . . . . Terminal Hacks 6 | . 6 . . Robot Analysis 1 | . 1 . . Prototype ID Bank 1 | . 1 . . Unreport Threat 1 | . 1 . . Locate Traps 2 | . 2 . . Zone Layout 1 | . 1 . . Fabricator Hacks . | . . . . Repair Station Hacks . | . . . . Recycling Unit Hacks . | . . . . Scanalyzer . | . . . . Garrison Access Hacks . | . . . . Unauthorized Hacks 9 | . 9 . . Terminals 7 | . 7 . . Track 3 | . 3 . . Assimilate 1 | . 1 . . Botnet 2 | . 2 . . Operators 1 | . 1 . . Fabricators . | . . . . Repair Stations . | . . . . Recycling Units 2 | . 2 . . Reject 1 | . 1 . . Recyclers 1 | . 1 . . Scanalyzers . | . . . . Garrison Access . | . . . . Data Cores Recovered . | . . . . Used . | . . . . Hacking Detections 7 | . 7 . . Full Trace Events . | . . . . Feedback Events . | . . . . Feedback Blocked . | . . . . Robot Schematics Acquired . | . . . . Robots Built . | . . . . Authchips . | . . . . Time . | . . . . Total Robot Build Rating . | . . . . Part Schematics Acquired . | . . . . Parts Built . | . . . . Authchips . | . . . . Time . | . . . . Total Part Build Rating . | . . . . Parts Repaired . | . . . . Time . | . . . . Parts Recycled . | . . . . Recycled Matter . | . . . . Retrieved Matter . | . . . . Retrieved Components . | . . . . Parts Scanalyzed . | . . . . Part Schematics Acquired . | . . . . Parts Damaged . | . . . . Bothacking | -11 -10 -10 -7 ------------ Run | Jun Mat Sub Rec Used RIF Installer . | . . . . Robots Hacked . | . . . . Non-combat . | . . . . Combat . | . . . . Robot Hacks Applied . | . . . . Relay Couplers Released . | . . . . Fabnet Peak Effective % . | . . . . Robots Rewired . | . . . . Allies Hacked . | . . . . Hacks Repelled . | . . . . Allies | -11 -10 -10 -7 -------- Run | Jun Mat Sub Rec Total Allies 1 | . 1 . . Largest Group 1 | . 1 1 1 Highest-Rated Group 10 | . 10 10 10 Highest-Rated Ally 10 | . 10 10 10 Total Orders 1 | . . . 1 STAY 1 | . . . 1 Ally Attacks . | . . . . Total Damage . | . . . . Kills . | . . . . Allies Corrupted . | . . . . Allies Melted . | . . . . Intel | -11 -10 -10 -7 ------- Run | Jun Mat Sub Rec Robot Analysis Total 1 | . 1 . . Derelict Logs Recovered . | . . . . Drone Launches . | . . . . Drone Recoveries . | . . . . Exploration | -11 -10 -10 -7 ------------- Run | Jun Mat Sub Rec Turns Passed 1011 | 66 605 216 124 Spaces Moved 908 | 40 614 187 67 Core 10 | 10 . . . Treads . | . . . . Legs . | . . . . Wheels 898 | 30 614 187 67 Hover . | . . . . Flight . | . . . . Fastest Speed 50 | 50 80 90 100 Average Speed 85 | 72 82 91 100 Slowest Speed 115 | 80 90 110 115 Overloaded Moves . | . . . . Propulsion Burnouts . | . . . . Robots Hopped . | . . . . Cave-ins Triggered . | . . . . Exploration Rate (%) 38 | 3 95 25 31 Regions Visited 3 Branch Regions 2 Pre-discovered Areas . | . . . . Known Exits Taken . | . . . . Unknown Exits Taken 3 | 1 1 1 . Scrap Searched . | . . . . Spaces Dug 1 | . 1 . . Terrain Destroyed 74 | . 1 73 . Melee . | . . . . Projectile 1 | . 1 . . AOE 73 | . . 73 . Terrain Rammed . | . . . . Walls Destroyed . | . . . . Machines Disabled . | . . . . Actions | -11 -10 -10 -7 --------- Run | Jun Mat Sub Rec Total 1051 | 63 676 214 98 Wait 8 | . 8 . . Move 905 | 39 613 186 67 Hop . | . . . . Pick Up 22 | 9 9 2 2 Fast Attach 7 | 5 1 . 1 Attach 8 | 2 . 1 5 Detach 3 | . 1 . 2 Swap 37 | 1 15 14 7 Drop 17 | 1 12 2 2 Fire 44 | 6 17 9 12 Melee . | . . . . Ram . | . . . . Kick . | . . . . Crush . | . . . . Escape Stasis . | . . . . Rewire . | . . . . Trap . | . . . . Miscellaneous . | . . . . Route ------- -11/Junkyard -10/Materials (discovered 5 exits: [*Mat x2] / [*Min x2] / [*Sub]) -10/Subcaves -7/Recycling History --------- Turn | Location | Event 13 | -11/Junkyard | Discovered new exit (range 16) 67 | -11/Junkyard | Entered Materials 145 | -10/Materials | Discovered new exit (range 15) 215 | -10/Materials | Discovered new exit (range 6) 307 | -10/Materials | Build established: Mutant 312 | -10/Materials | Central database locked down 436 | -10/Materials | Discovered new exit (range 6) 474 | -10/Materials | Discovered new exit (range 12) 500 | -10/Materials | Derelicts attacked the area 664 | -10/Materials | Discovered new exit (range 12) 672 | -10/Materials | Entered Subcaves 672 | -10/Subcaves | Accompanied by 1 ally 690 | -10/Subcaves | Shifting Twisted Machinery released Sub. Optics 697 | -10/Subcaves | Shifting Twisted Machinery released Sub. Shrapnel Launcher 856 | -10/Subcaves | Discovered new exit (range 16) 888 | -10/Subcaves | Entered Recycling 888 | -7/Recycling | Accompanied by 1 ally 899 | -7/Recycling | Core integrity fell below 50% 912 | -7/Recycling | Found Scrap Engine 1009 | -7/Recycling | Core integrity fell below 20% 1012 | -7/Recycling | Destroyed by P-60 Hacker with Shock Rifle Last Messages --------------- 00917_ Dropped Grenade Launcher. 00919_ Acquired Imp. Heat Sink. 00921_ Acquired 3 matter. 00974_ R-06 Scavenger destroyed. 00977_ R-06 Scavenger suffers critical hit (Destroy). 00977_ Destroyed Lgt. Ion Engine. 00983_ R-06 Scavenger destroyed. 00985_ R-06 Scavenger collects Tractor Beam. 00998_ Y-54 Guardian springs to life. 01001_ Technician 1a reveals location of hidden door. 01002_ Lgt. Treads destroyed. 01005_ P-60 Hacker resets Y-54 Guardian, system corruption cleaned. 01006_ Sub. Shrapnel Launcher destroyed. 01008_ Ion Engine destroyed. 01008_ Acquired 39 matter. 01009_ Shotgun destroyed. 01010_ Y-54 Guardian destroyed. 01010_ Com. Wheel destroyed. 01010_ R-06 Scavenger destroyed. 01012_ Com. Wheel destroyed. Map ----- +----------------------------------------------------+ | | | | | | | | | | | | | | | ????????????????????????????????????? | | ????????????????????????????????????? | | ????????????????????????????????????? | | ????????????????????????????????????? | | ????????????????????????????????????? | | ??????????????????##############????? | | ??????????????????# #????? | | ??????????????????# #????? | | ??????????????????# #????? | | ??????????????????# #????? | | ??????????????????# #????? | | ??????????????????# # ???? | | ??????????????????# # ???? | | ??????????????????# + ???? | | ??????????????????# #????? | | ??????????????????# #????? | | ??????????????????# #????? | | ??????????????????# % #????? | | ??????????????????### @! ## #??? | | ????????#####+##### # #??? | | ????????# ! / # ##+#??? | | ????????# a ???? | | ????????# ! ! d ??? | | ????????# # #?? | | ????????? p = # #?? | | ????????# ! r#[% # #?? | | ????????# !h g #### # #?? | | ????????# !/ ??####### # #?? | | ????????# ?????????## # #?? | | ??????????????????????## o# ? #?? | | ??????????????????????## # ? #?? | | ??????????????????????##u # ?? #?? | | ??????????????????????## # ???????? | | ??????????????????????## # ???????? | | ??????????????????????## ##???????? | | ??????????????????????## ##???????? | | ????????????############ #########? | | ????????????############ #########? | | ????????????## """"""" # # ##? | | ????????????## """Y""" # #""" ##? | | ????????????## # #""" ##? | | ????????????## """ """ # #""" ##? | | ????????????## """ """ # # ##? | +----------------------------------------------------+ Best States ------------- Heat Dissipation 39 Energy Generation 10 Energy Capacity 250 Matter Stores 300 Matter Capacity 300 Sight Range 16 Terrain Scan Range 16 Terrain Scan Density 10 Evasion (%) 50 Recoil Reduction 1 Item Schematics ----------------- None Robot Schematics ------------------ None Fabricated ------------ Nothing Alien Tech Used ----------------- None Achievements -------------- None Challenges ------------ None Game ------ Seed TerrabombSpectralExtractor Manual? 0 Play Time 00:20:14 Cumulative 937.5 hours Start 2023.06.25 @ 15:33:07 End 2023.06.25 @ 15:50:40 Sessions 1 Manual Loads 0 Difficulty Rogue Special Mode None Game No. 490 Rogue 363 Adventurer 125 Explorer 2 Win Type - Total 109 Types 85/9/7/2/3/0/0/2/1 Lore% 82 Gallery% 89 Achievement% 82 Wizard Run 0 Options --------- ASCII 0 Keyboard 1 Movement Numpad Keybinds 0 Fullscreen 1 Font 36/TerminusFine Map View 83x50 Tactical HUD 1 Map Filters NONE Filters NONE Steam 1 RUN: 24c2051f-3a65-4cde-98f4-cfe2618bf088